{"text_format":"3","workbook":"xlsx","n_sheets":1,"sheets":["TROŠKOVI RENOVIRANJA"],"not_rendered":{"images":2,"defined_names":4},"read":"whole","date_system":"1900"}

{"sheet":"TROŠKOVI RENOVIRANJA","index":0,"n_rows":28,"n_cols":8,"rows_kept":28,"merged":[[25,1,25,5],[26,1,26,5],[27,1,27,5]]}
[null,"KALKULATOR TROŠKOVA ZA RENOVIRANJE KUHINJE"]
[]
[null,"Kategorija","Stavke","Količina","Procenjeni trošak","Stvarni trošak","Ukupan procenjeni trošak","Ukupan stvarni trošak"]
[null,"Ormarići","Donji ormarići: Modularni standardni (kol. u linearnim metrima)",25,{"v":5,"d":"5.00 RSD"},null,{"$f":"Podaci[[#This Row],[Količina]]*Podaci[[#This Row],[Procenjeni trošak]]","v":{"v":125,"d":"125 RSD"}},{"$f":"Podaci[[#This Row],[Količina]]*Podaci[[#This Row],[Stvarni trošak]]","v":{"v":0,"d":"0 RSD"}}]
[null,"Ormarići","Viseći ormarići: Modularni standardni (kol. u linearnim metrima)",25,{"v":3.5,"d":"3.50 RSD"},null,{"$f":"Podaci[[#This Row],[Količina]]*Podaci[[#This Row],[Procenjeni trošak]]","v":{"v":87.5,"d":"88 RSD"}},{"$f":"Podaci[[#This Row],[Količina]]*Podaci[[#This Row],[Stvarni trošak]]","v":{"v":0,"d":"0 RSD"}}]
[null,"Aparati za čišćenje","Mašina za sudove: Standardna",1,{"v":250,"d":"250.00 RSD"},null,{"$f":"Podaci[[#This Row],[Količina]]*Podaci[[#This Row],[Procenjeni trošak]]","v":{"v":250,"d":"250 RSD"}},{"$f":"Podaci[[#This Row],[Količina]]*Podaci[[#This Row],[Stvarni trošak]]","v":{"v":0,"d":"0 RSD"}}]
[null,"Aparati za čišćenje","Kanta za đubre: Standardna",1,{"v":175,"d":"175.00 RSD"},null,{"$f":"Podaci[[#This Row],[Količina]]*Podaci[[#This Row],[Procenjeni trošak]]","v":{"v":175,"d":"175 RSD"}},{"$f":"Podaci[[#This Row],[Količina]]*Podaci[[#This Row],[Stvarni trošak]]","v":{"v":0,"d":"0 RSD"}}]
[null,"Aparati za kuvanje","Šporet: Standardni ugradni",1,{"v":375,"d":"375.00 RSD"},null,{"$f":"Podaci[[#This Row],[Količina]]*Podaci[[#This Row],[Procenjeni trošak]]","v":{"v":375,"d":"375 RSD"}},{"$f":"Podaci[[#This Row],[Količina]]*Podaci[[#This Row],[Stvarni trošak]]","v":{"v":0,"d":"0 RSD"}}]
[null,"Aparati za kuvanje","Mikrotalasna: Standardna",1,{"v":300,"d":"300.00 RSD"},null,{"$f":"Podaci[[#This Row],[Količina]]*Podaci[[#This Row],[Procenjeni trošak]]","v":{"v":300,"d":"300 RSD"}},{"$f":"Podaci[[#This Row],[Količina]]*Podaci[[#This Row],[Stvarni trošak]]","v":{"v":0,"d":"0 RSD"}}]
[null,"Radne površine","Puna površina (količina u linearnim metrima)",23,{"v":10,"d":"10.00 RSD"},null,{"$f":"Podaci[[#This Row],[Količina]]*Podaci[[#This Row],[Procenjeni trošak]]","v":{"v":230,"d":"230 RSD"}},{"$f":"Podaci[[#This Row],[Količina]]*Podaci[[#This Row],[Stvarni trošak]]","v":{"v":0,"d":"0 RSD"}}]
[null,"Vrata","Unutrašnjost: Furnirano drvo",1,{"v":65,"d":"65.00 RSD"},null,{"$f":"Podaci[[#This Row],[Količina]]*Podaci[[#This Row],[Procenjeni trošak]]","v":{"v":65,"d":"65 RSD"}},{"$f":"Podaci[[#This Row],[Količina]]*Podaci[[#This Row],[Stvarni trošak]]","v":{"v":0,"d":"0 RSD"}}]
[null,"Dodaci","Dodaci: Trenutna topla voda standardno",1,{"v":120,"d":"120.00 RSD"},null,{"$f":"Podaci[[#This Row],[Količina]]*Podaci[[#This Row],[Procenjeni trošak]]","v":{"v":120,"d":"120 RSD"}},{"$f":"Podaci[[#This Row],[Količina]]*Podaci[[#This Row],[Stvarni trošak]]","v":{"v":0,"d":"0 RSD"}}]
[null,"Dodaci","Dodaci: Dispenzer za sapun",1,{"v":40,"d":"40.00 RSD"},null,{"$f":"Podaci[[#This Row],[Količina]]*Podaci[[#This Row],[Procenjeni trošak]]","v":{"v":40,"d":"40 RSD"}},{"$f":"Podaci[[#This Row],[Količina]]*Podaci[[#This Row],[Stvarni trošak]]","v":{"v":0,"d":"0 RSD"}}]
[null,"Slavine","Slavina: Sa polugom, standardna",1,{"v":130,"d":"130.00 RSD"},null,{"$f":"Podaci[[#This Row],[Količina]]*Podaci[[#This Row],[Procenjeni trošak]]","v":{"v":130,"d":"130 RSD"}},{"$f":"Podaci[[#This Row],[Količina]]*Podaci[[#This Row],[Stvarni trošak]]","v":{"v":0,"d":"0 RSD"}}]
[null,"Podovi","Laminat (količina u kvadratima)",165,{"v":3.5,"d":"3.50 RSD"},null,{"$f":"Podaci[[#This Row],[Količina]]*Podaci[[#This Row],[Procenjeni trošak]]","v":{"v":577.5,"d":"578 RSD"}},{"$f":"Podaci[[#This Row],[Količina]]*Podaci[[#This Row],[Stvarni trošak]]","v":{"v":0,"d":"0 RSD"}}]
[null,"Aparati za pranje rublja","Mašina za sudove: Standardna",1,{"v":500,"d":"500.00 RSD"},null,{"$f":"Podaci[[#This Row],[Količina]]*Podaci[[#This Row],[Procenjeni trošak]]","v":{"v":500,"d":"500 RSD"}},{"$f":"Podaci[[#This Row],[Količina]]*Podaci[[#This Row],[Stvarni trošak]]","v":{"v":0,"d":"0 RSD"}}]
[null,"Aparati za pranje rublja","Mašina za veš: Standardna",1,{"v":375,"d":"375.00 RSD"},null,{"$f":"Podaci[[#This Row],[Količina]]*Podaci[[#This Row],[Procenjeni trošak]]","v":{"v":375,"d":"375 RSD"}},{"$f":"Podaci[[#This Row],[Količina]]*Podaci[[#This Row],[Stvarni trošak]]","v":{"v":0,"d":"0 RSD"}}]
[null,"Rasveta","Rasveta: Udubljena",4,{"v":35,"d":"35.00 RSD"},null,{"$f":"Podaci[[#This Row],[Količina]]*Podaci[[#This Row],[Procenjeni trošak]]","v":{"v":140,"d":"140 RSD"}},{"$f":"Podaci[[#This Row],[Količina]]*Podaci[[#This Row],[Stvarni trošak]]","v":{"v":0,"d":"0 RSD"}}]
[null,"Frižideri","Frižider: Samostojeći, luksuzni",1,{"v":1200,"d":"1,200.00 RSD"},null,{"$f":"Podaci[[#This Row],[Količina]]*Podaci[[#This Row],[Procenjeni trošak]]","v":{"v":1200,"d":"1,200 RSD"}},{"$f":"Podaci[[#This Row],[Količina]]*Podaci[[#This Row],[Stvarni trošak]]","v":{"v":0,"d":"0 RSD"}}]
[null,"Sudoperi","Dve posude, nerđajući čelik, luksuzni",1,{"v":125,"d":"125.00 RSD"},null,{"$f":"Podaci[[#This Row],[Količina]]*Podaci[[#This Row],[Procenjeni trošak]]","v":{"v":125,"d":"125 RSD"}},{"$f":"Podaci[[#This Row],[Količina]]*Podaci[[#This Row],[Stvarni trošak]]","v":{"v":0,"d":"0 RSD"}}]
[null,"Ventilacija","Aspirator: Standardni sa crevom",1,{"v":180,"d":"180.00 RSD"},null,{"$f":"Podaci[[#This Row],[Količina]]*Podaci[[#This Row],[Procenjeni trošak]]","v":{"v":180,"d":"180 RSD"}},{"$f":"Podaci[[#This Row],[Količina]]*Podaci[[#This Row],[Stvarni trošak]]","v":{"v":0,"d":"0 RSD"}}]
[null,"Zidovi","Zidna ploča (količina u kvadratima)",70,{"v":2,"d":"2.00 RSD"},null,{"$f":"Podaci[[#This Row],[Količina]]*Podaci[[#This Row],[Procenjeni trošak]]","v":{"v":140,"d":"140 RSD"}},{"$f":"Podaci[[#This Row],[Količina]]*Podaci[[#This Row],[Stvarni trošak]]","v":{"v":0,"d":"0 RSD"}}]
[null,"Prozori","Klizno",2,{"v":120,"d":"120.00 RSD"},null,{"$f":"Podaci[[#This Row],[Količina]]*Podaci[[#This Row],[Procenjeni trošak]]","v":{"v":240,"d":"240 RSD"}},{"$f":"Podaci[[#This Row],[Količina]]*Podaci[[#This Row],[Stvarni trošak]]","v":{"v":0,"d":"0 RSD"}}]
[null,"Drugo",{"$nulls":4},{"$f":"Podaci[[#This Row],[Količina]]*Podaci[[#This Row],[Procenjeni trošak]]","v":{"v":0,"d":"0 RSD"}},{"$f":"Podaci[[#This Row],[Količina]]*Podaci[[#This Row],[Stvarni trošak]]","v":{"v":0,"d":"0 RSD"}}]
[null,"Ukupno",null,null,{"$f":"SUBTOTAL(109,Podaci[Procenjeni trošak])","v":{"v":4014,"d":"4,014.00 RSD"}},{"$f":"SUBTOTAL(109,Podaci[Stvarni trošak])","v":{"v":0,"d":"0.00 RSD"}},{"$f":"SUBTOTAL(109,Podaci[Ukupan procenjeni trošak])","v":{"v":5375,"d":"5,375.00 RSD"}},{"$f":"SUBTOTAL(109,Podaci[Ukupan stvarni trošak])","v":{"v":0,"d":"0.00 RSD"}}]
[null,"Međuvrednost",{"$nulls":4},{"$f":"SUBTOTAL(109,Podaci[Ukupan procenjeni trošak])","v":{"v":5375,"d":"5,375.00 RSD"}},{"$f":"SUBTOTAL(109,Podaci[Ukupan stvarni trošak])","v":{"v":0,"d":"0.00 RSD"}}]
[null,"Neočekivani troškovi - dodatnih 30%",{"$nulls":4},{"$f":"G26*0.3","v":{"v":1612.5,"d":"1,612.50 RSD"}},{"$f":"H26*0.3","v":{"v":0,"d":"0.00 RSD"}}]
[null,"Ukupno",{"$nulls":4},{"$f":"SUM(G26:G27)","v":{"v":6987.5,"d":"6,987.50 RSD"}},{"$f":"SUM(H26:H27)","v":{"v":0,"d":"0.00 RSD"}}]